[Event "*** SCC Grand Prix: Titled Tuesday Blitz"]
[Site "Chess.com"]
[Date "2020.08.25"]
[Round "2"]
[White "dbrankovic68"]
[Black "Supernotar"]
[Result "0-1"]
[WhiteElo "2477"]
[BlackElo "2716"]
[TimeControl "180+1"]
[EndTime "10:18:59 PDT"]
[Termination "Supernotar won by checkmate"]

1. e4 {[%clk 0:02:59.9]} 1... c6 {[%clk 0:03:00.2]} 2. Nc3 {[%clk 0:02:57]} 2...
d5 {[%clk 0:03:00.4]} 3. Nf3 {[%clk 0:02:57.5]} 3... Bg4 {[%clk 0:02:59.8]} 4.
h3 {[%clk 0:02:57.9]} 4... Bxf3 {[%clk 0:03:00]} 5. Qxf3 {[%clk 0:02:58.4]} 5...
e6 {[%clk 0:02:59.7]} 6. d4 {[%clk 0:02:58]} 6... dxe4 {[%clk 0:02:59.2]} 7.
Qxe4 {[%clk 0:02:54.5]} 7... Nf6 {[%clk 0:02:58.7]} 8. Qd3 {[%clk 0:02:54.9]}
8... Nbd7 {[%clk 0:02:56.8]} 9. Bf4 {[%clk 0:02:53.1]} 9... Be7 {[%clk
0:02:56.2]} 10. Be2 {[%clk 0:02:52.1]} 10... O-O {[%clk 0:02:55.7]} 11. Qg3
{[%clk 0:02:47.9]} 11... Re8 {[%clk 0:02:30.9]} 12. Bh6 {[%clk 0:02:38.2]} 12...
Bf8 {[%clk 0:02:29.8]} 13. Bg5 {[%clk 0:02:13.3]} 13... Qb6 {[%clk 0:02:25.2]}
14. O-O-O {[%clk 0:02:13.2]} 14... a5 {[%clk 0:02:11.6]} 15. h4 {[%clk
0:02:12.5]} 15... a4 {[%clk 0:02:09.8]} 16. h5 {[%clk 0:02:09.5]} 16... a3
{[%clk 0:02:00.9]} 17. b3 {[%clk 0:02:09.1]} 17... Qa5 {[%clk 0:01:54]} 18. h6
{[%clk 0:02:03.2]} 18... g6 {[%clk 0:01:53.9]} 19. Kb1 {[%clk 0:02:02]} 19...
Bb4 {[%clk 0:01:46.1]} 20. Qf4 {[%clk 0:01:24.3]} 20... Nd5 {[%clk 0:01:12.1]}
21. Nxd5 {[%clk 0:01:07.4]} 21... cxd5 {[%clk 0:01:12]} 22. Bd3 {[%clk
0:00:54.4]} 22... Rac8 {[%clk 0:01:08.6]} 23. Rh3 {[%clk 0:00:53.3]} 23... Bf8
{[%clk 0:01:03.6]} 24. Qd2 {[%clk 0:00:47.1]} 24... Bb4 {[%clk 0:00:55.9]} 25.
Qf4 {[%clk 0:00:46.1]} 25... Rc6 {[%clk 0:00:52.4]} 26. Rf3 {[%clk 0:00:44.9]}
26... Rf8 {[%clk 0:00:48.4]} 27. Rh1 {[%clk 0:00:40.9]} 27... f6 {[%clk
0:00:45.7]} 28. Bh4 {[%clk 0:00:40.1]} 28... Bd2 {[%clk 0:00:41.2]} 29. Qg4
{[%clk 0:00:14.4]} 29... Qc3 {[%clk 0:00:37.3]} 30. Qxg6+ {[%clk 0:00:10.3]}
30... hxg6 {[%clk 0:00:33.6]} 31. h7+ {[%clk 0:00:10.5]} 31... Kh8 {[%clk
0:00:31]} 32. Bxf6+ {[%clk 0:00:07.4]} 32... Nxf6 {[%clk 0:00:27.7]} 33. Rxf6
{[%clk 0:00:07.8]} 33... Qb2# {[%clk 0:00:26.9]} 0-1

[Event "*** SCC Grand Prix: Titled Tuesday Blitz"]
[Site "Chess.com"]
[Date "2020.08.25"]
[Round "2"]
[White "Mikasinski"]
[Black "jamalm2"]
[Result "1-0"]
[WhiteElo "2351"]
[BlackElo "1913"]
[TimeControl "180+1"]
[EndTime "10:18:59 PDT"]
[Termination "Mikasinski won on time"]

1. e4 {[%clk 0:03:00.9]} 1... c6 {[%clk 0:02:56.7]} 2. d4 {[%clk 0:02:48.1]}
2... d5 {[%clk 0:02:54.5]} 3. e5 {[%clk 0:02:47.5]} 3... Bf5 {[%clk 0:02:52.3]}
4. h4 {[%clk 0:02:47.5]} 4... h6 {[%clk 0:02:48]} 5. g4 {[%clk 0:02:46.9]} 5...
Bh7 {[%clk 0:02:47.6]} 6. e6 {[%clk 0:02:45.8]} 6... fxe6 {[%clk 0:02:43.5]} 7.
Bd3 {[%clk 0:02:44.4]} 7... Nf6 {[%clk 0:02:31.4]} 8. Bxh7 {[%clk 0:02:41.4]}
8... Rxh7 {[%clk 0:02:30.9]} 9. Qd3 {[%clk 0:02:37.2]} 9... Kf7 {[%clk
0:02:29.2]} 10. g5 {[%clk 0:01:56.4]} 10... hxg5 {[%clk 0:02:07.1]} 11. Nf3
{[%clk 0:01:55.9]} 11... Ne4 {[%clk 0:01:57.7]} 12. Nc3 {[%clk 0:01:52.2]} 12...
Kg8 {[%clk 0:01:24.4]} 13. Nxe4 {[%clk 0:01:46.9]} 13... dxe4 {[%clk 0:01:23.1]}
14. Qxe4 {[%clk 0:01:47.5]} 14... Qd5 {[%clk 0:01:21]} 15. Nxg5 {[%clk 0:01:36]}
15... Qxe4+ {[%clk 0:01:19.9]} 16. Nxe4 {[%clk 0:01:36.1]} 16... Rh5 {[%clk
0:01:05.1]} 17. Ng5 {[%clk 0:01:28.2]} 17... e5 {[%clk 0:00:59.6]} 18. dxe5
{[%clk 0:01:26.2]} 18... Nd7 {[%clk 0:00:59]} 19. f4 {[%clk 0:01:21.6]} 19...
Nb6 {[%clk 0:00:53.3]} 20. b3 {[%clk 0:01:12.1]} 20... Rd8 {[%clk 0:00:45.4]}
21. Be3 {[%clk 0:01:04.9]} 21... Nd5 {[%clk 0:00:44.1]} 22. Bd2 {[%clk
0:01:05.2]} 22... Re8 {[%clk 0:00:34.3]} 23. c4 {[%clk 0:01:02.6]} 23... Nc7
{[%clk 0:00:29.6]} 24. O-O-O {[%clk 0:00:55.3]} 24... e6 {[%clk 0:00:28.7]} 25.
Be3 {[%clk 0:00:53.9]} 25... Na6 {[%clk 0:00:16.2]} 26. Rd7 {[%clk 0:00:48.5]}
26... Bc5 {[%clk 0:00:12.8]} 27. Bd2 {[%clk 0:00:38.7]} 27... Ba3+ {[%clk
0:00:04.1]} 28. Kb1 {[%clk 0:00:37.7]} 28... Nc5 {[%clk 0:00:03.8]} 29. Rc7
{[%clk 0:00:35.9]} 1-0

[Event "*** SCC Grand Prix: Titled Tuesday Blitz"]
[Site "Chess.com"]
[Date "2020.08.25"]
[Round "2"]
[White "niki_2003"]
[Black "Cambek64"]
[Result "0-1"]
[WhiteElo "1667"]
[BlackElo "2343"]
[TimeControl "180+1"]
[EndTime "10:19:02 PDT"]
[Termination "Cambek64 won by checkmate"]

1. d4 {[%clk 0:03:00.9]} 1... d5 {[%clk 0:02:55.6]} 2. c4 {[%clk 0:03:00.3]}
2... c6 {[%clk 0:02:54.7]} 3. g3 {[%clk 0:02:59.1]} 3... Nf6 {[%clk 0:02:53.1]}
4. Nf3 {[%clk 0:02:58.8]} 4... Bf5 {[%clk 0:02:49.4]} 5. Bg2 {[%clk 0:02:58.8]}
5... e6 {[%clk 0:02:49.6]} 6. Nbd2 {[%clk 0:02:55.7]} 6... h6 {[%clk 0:02:48.6]}
7. b3 {[%clk 0:02:56]} 7... Be7 {[%clk 0:02:46.6]} 8. Bb2 {[%clk 0:02:56.4]}
8... O-O {[%clk 0:02:46.9]} 9. O-O {[%clk 0:02:56.3]} 9... Nbd7 {[%clk
0:02:47.2]} 10. Nh4 {[%clk 0:02:54.8]} 10... Bh7 {[%clk 0:02:45.9]} 11. Re1
{[%clk 0:02:52]} 11... Ne4 {[%clk 0:02:42.2]} 12. Nxe4 {[%clk 0:02:48.6]} 12...
Bxh4 {[%clk 0:02:41.9]} 13. Nd2 {[%clk 0:02:44.2]} 13... Bg5 {[%clk 0:02:33.7]}
14. f4 {[%clk 0:02:24.5]} 14... Be7 {[%clk 0:02:29.4]} 15. e4 {[%clk 0:02:24.5]}
15... dxe4 {[%clk 0:02:16.8]} 16. Nxe4 {[%clk 0:02:06.8]} 16... Bb4 {[%clk
0:02:13.7]} 17. Re2 {[%clk 0:01:52.2]} 17... Re8 {[%clk 0:02:04.1]} 18. c5
{[%clk 0:01:52]} 18... Bxe4 {[%clk 0:02:01.7]} 19. Bxe4 {[%clk 0:01:47.4]} 19...
Nf6 {[%clk 0:01:58.4]} 20. Re1 {[%clk 0:01:24.4]} 20... Nxe4 {[%clk 0:01:54.3]}
21. Rxe4 {[%clk 0:01:23.9]} 21... Ba5 {[%clk 0:01:53.2]} 22. Re1 {[%clk
0:01:18.8]} 22... Bc7 {[%clk 0:01:52.4]} 23. Qg4 {[%clk 0:01:17.7]} 23... Qd5
{[%clk 0:01:51.8]} 24. Re2 {[%clk 0:01:12.4]} 24... b6 {[%clk 0:01:49.4]} 25.
Rae1 {[%clk 0:01:11.8]} 25... bxc5 {[%clk 0:01:48.1]} 26. dxc5 {[%clk
0:01:11.9]} 26... Qxc5+ {[%clk 0:01:41.3]} 27. Kh1 {[%clk 0:01:02]} 27... Qf8
{[%clk 0:01:39.9]} 28. Rc1 {[%clk 0:00:56.2]} 28... Bb6 {[%clk 0:01:33.5]} 29.
Rxc6 {[%clk 0:00:54.3]} 29... Rac8 {[%clk 0:01:31.4]} 30. Rec2 {[%clk 0:00:47]}
30... Rxc6 {[%clk 0:01:30.3]} 31. Rxc6 {[%clk 0:00:47.1]} 31... Rd8 {[%clk
0:01:18.1]} 32. Bc3 {[%clk 0:00:38.9]} 32... Bd4 {[%clk 0:01:12.2]} 33. Bxd4
{[%clk 0:00:27.7]} 33... Rxd4 {[%clk 0:01:12.3]} 34. Qf3 {[%clk 0:00:28.2]}
34... Qd8 {[%clk 0:01:11.3]} 35. Rc1 {[%clk 0:00:16.7]} 35... Rd2 {[%clk
0:01:07.7]} 36. a4 {[%clk 0:00:14.5]} 36... Rd3 {[%clk 0:01:01.5]} 37. b4 {[%clk
0:00:14.7]} 37... Rxf3 {[%clk 0:00:59.7]} 38. b5 {[%clk 0:00:13.2]} 38... Rf2
{[%clk 0:00:57.7]} 39. h3 {[%clk 0:00:11.9]} 39... Qd5+ {[%clk 0:00:55.5]} 40.
Kg1 {[%clk 0:00:11.2]} 40... Qg2# {[%clk 0:00:55.5]} 0-1

[Event "*** SCC Grand Prix: Titled Tuesday Blitz"]
[Site "Chess.com"]
[Date "2020.08.25"]
[Round "2"]
[White "elcandado"]
[Black "SGchess01"]
[Result "1/2-1/2"]
[WhiteElo "2507"]
[BlackElo "2741"]
[TimeControl "180+1"]
[EndTime "10:19:03 PDT"]
[Termination "Game drawn - insufficient material"]

1. d4 {[%clk 0:03:00.9]} 1... Nf6 {[%clk 0:03:00.1]} 2. Bf4 {[%clk 0:03:00.4]}
2... b6 {[%clk 0:02:58.7]} 3. e3 {[%clk 0:03:00]} 3... Bb7 {[%clk 0:02:59.2]} 4.
Nf3 {[%clk 0:02:59.8]} 4... g6 {[%clk 0:02:59.7]} 5. Be2 {[%clk 0:02:59.3]} 5...
Bg7 {[%clk 0:03:00.2]} 6. O-O {[%clk 0:02:59]} 6... O-O {[%clk 0:03:00.8]} 7. h3
{[%clk 0:02:55.3]} 7... c5 {[%clk 0:03:00.8]} 8. c3 {[%clk 0:02:54.7]} 8... d6
{[%clk 0:03:00.6]} 9. Bh2 {[%clk 0:02:54]} 9... Nbd7 {[%clk 0:03:00.6]} 10. Nbd2
{[%clk 0:02:52.6]} 10... a6 {[%clk 0:03:00.7]} 11. a4 {[%clk 0:02:52.2]} 11...
Ra7 {[%clk 0:03:01.2]} 12. Qb3 {[%clk 0:02:51.6]} 12... Qa8 {[%clk 0:03:00]} 13.
c4 {[%clk 0:02:49.6]} 13... Ne4 {[%clk 0:02:55.5]} 14. d5 {[%clk 0:02:45]} 14...
Nxd2 {[%clk 0:02:55.3]} 15. Nxd2 {[%clk 0:02:45.9]} 15... Rb8 {[%clk 0:02:55.9]}
16. e4 {[%clk 0:02:35.1]} 16... b5 {[%clk 0:02:55]} 17. Qc2 {[%clk 0:02:16.2]}
17... bxc4 {[%clk 0:02:52.3]} 18. Nxc4 {[%clk 0:02:14.4]} 18... a5 {[%clk
0:02:51.4]} 19. Na3 {[%clk 0:02:01.7]} 19... Ba6 {[%clk 0:02:51.2]} 20. Nb5
{[%clk 0:01:51.5]} 20... Bxb5 {[%clk 0:02:47.6]} 21. Bxb5 {[%clk 0:01:50.7]}
21... Nf6 {[%clk 0:02:44.6]} 22. Rad1 {[%clk 0:01:42.9]} 22... Qb7 {[%clk
0:02:41.4]} 23. b3 {[%clk 0:01:42]} 23... Ne8 {[%clk 0:02:38.5]} 24. Rfe1 {[%clk
0:01:39.9]} 24... Nc7 {[%clk 0:02:38.4]} 25. Bc4 {[%clk 0:01:39.7]} 25... Qb4
{[%clk 0:02:36.8]} 26. f4 {[%clk 0:01:35.2]} 26... Qc3 {[%clk 0:02:28.8]} 27.
Qxc3 {[%clk 0:01:31.4]} 27... Bxc3 {[%clk 0:02:29.7]} 28. Re2 {[%clk 0:01:31.8]}
28... Rab7 {[%clk 0:02:29.3]} 29. e5 {[%clk 0:01:30]} 29... Bd4+ {[%clk
0:02:29.1]} 30. Kh1 {[%clk 0:01:28.7]} 30... Rxb3 {[%clk 0:02:29.2]} 31. Bxb3
{[%clk 0:01:28.2]} 31... Rxb3 {[%clk 0:02:30.1]} 32. exd6 {[%clk 0:01:28.1]}
32... exd6 {[%clk 0:02:30.4]} 33. f5 {[%clk 0:01:28.6]} 33... Nxd5 {[%clk
0:02:28.6]} 34. Bxd6 {[%clk 0:01:27.3]} 34... Nc3 {[%clk 0:02:22.1]} 35. Re8+
{[%clk 0:01:20.3]} 35... Kg7 {[%clk 0:02:22.4]} 36. Rf1 {[%clk 0:01:18.6]} 36...
gxf5 {[%clk 0:02:09.7]} 37. Rxf5 {[%clk 0:01:12.5]} 37... Nxa4 {[%clk
0:02:09.4]} 38. Re4 {[%clk 0:00:55.1]} 38... f6 {[%clk 0:02:03.9]} 39. g4 {[%clk
0:00:27.1]} 39... Rxh3+ {[%clk 0:01:48.8]} 40. Kg2 {[%clk 0:00:26.4]} 40... Re3
{[%clk 0:01:48.7]} 41. Rxe3 {[%clk 0:00:24.1]} 41... Bxe3 {[%clk 0:01:49.6]} 42.
Kf3 {[%clk 0:00:23.9]} 42... Bd4 {[%clk 0:01:49.4]} 43. Bc7 {[%clk 0:00:20.1]}
43... c4 {[%clk 0:01:47]} 44. Bxa5 {[%clk 0:00:19.4]} 44... c3 {[%clk
0:01:46.9]} 45. Rd5 {[%clk 0:00:19.1]} 45... Be5 {[%clk 0:01:43.3]} 46. Rd7+
{[%clk 0:00:17.1]} 46... Kg6 {[%clk 0:01:43.5]} 47. Rd8 {[%clk 0:00:17.1]} 47...
Kf7 {[%clk 0:01:31.7]} 48. Rc8 {[%clk 0:00:16.6]} 48... Ke6 {[%clk 0:01:31.9]}
49. Ke4 {[%clk 0:00:16.3]} 49... h6 {[%clk 0:01:30.5]} 50. Rc6+ {[%clk
0:00:14.3]} 50... Kd7 {[%clk 0:01:29.4]} 51. Rc4 {[%clk 0:00:14.1]} 51... Nb2
{[%clk 0:01:27.6]} 52. Rxc3 {[%clk 0:00:13.9]} 52... Bxc3 {[%clk 0:01:25.3]} 53.
Bxc3 {[%clk 0:00:14.8]} 53... Nd1 {[%clk 0:01:25.8]} 54. Bxf6 {[%clk 0:00:14.4]}
54... Nf2+ {[%clk 0:01:24.3]} 55. Kf5 {[%clk 0:00:12.4]} 55... Nxg4 {[%clk
0:01:24.9]} 56. Kxg4 {[%clk 0:00:12.2]} 56... Ke6 {[%clk 0:01:24.8]} 57. Kh5
{[%clk 0:00:11.8]} 57... Kxf6 {[%clk 0:01:24.6]} 58. Kxh6 {[%clk 0:00:12.7]}
1/2-1/2

[Event "*** SCC Grand Prix: Titled Tuesday Blitz"]
[Site "Chess.com"]
[Date "2020.08.25"]
[Round "2"]
[White "lucachess49"]
[Black "ftorodent"]
[Result "1-0"]
[WhiteElo "2484"]
[BlackElo "2683"]
[TimeControl "180+1"]
[EndTime "10:19:04 PDT"]
[Termination "lucachess49 won by checkmate"]

1. d4 {[%clk 0:03:00.3]} 1... f5 {[%clk 0:02:59]} 2. c4 {[%clk 0:03:00.8]} 2...
Nf6 {[%clk 0:02:58.4]} 3. Nc3 {[%clk 0:03:00.1]} 3... e6 {[%clk 0:02:58.2]} 4.
e3 {[%clk 0:02:54.9]} 4... Bb4 {[%clk 0:02:47.8]} 5. Bd3 {[%clk 0:02:53.5]} 5...
O-O {[%clk 0:02:47.5]} 6. Ne2 {[%clk 0:02:50]} 6... c5 {[%clk 0:02:36.3]} 7. a3
{[%clk 0:02:46]} 7... Bxc3+ {[%clk 0:02:34]} 8. Nxc3 {[%clk 0:02:40.2]} 8... b6
{[%clk 0:02:30.9]} 9. d5 {[%clk 0:02:37.1]} 9... exd5 {[%clk 0:02:09.3]} 10.
cxd5 {[%clk 0:02:34.9]} 10... d6 {[%clk 0:02:08.7]} 11. O-O {[%clk 0:02:34.4]}
11... Qe7 {[%clk 0:01:49]} 12. h3 {[%clk 0:02:31.1]} 12... Ne4 {[%clk
0:01:46.4]} 13. Qc2 {[%clk 0:02:18.7]} 13... Re8 {[%clk 0:01:37.7]} 14. f3
{[%clk 0:02:08.2]} 14... Nxc3 {[%clk 0:01:36]} 15. bxc3 {[%clk 0:02:09.1]} 15...
Qf6 {[%clk 0:01:18]} 16. Bb2 {[%clk 0:02:02.7]} 16... c4 {[%clk 0:01:05.2]} 17.
Bxc4 {[%clk 0:01:58.9]} 17... Nd7 {[%clk 0:01:05]} 18. Bb5 {[%clk 0:01:57.9]}
18... Qf7 {[%clk 0:01:02.1]} 19. Bc6 {[%clk 0:01:54.8]} 19... Rb8 {[%clk
0:01:02]} 20. e4 {[%clk 0:01:54.1]} 20... Rf8 {[%clk 0:00:52.7]} 21. c4 {[%clk
0:01:49.7]} 21... Ne5 {[%clk 0:00:50.1]} 22. Bxe5 {[%clk 0:01:39.5]} 22... dxe5
{[%clk 0:00:50]} 23. f4 {[%clk 0:01:39.9]} 23... Qe7 {[%clk 0:00:45.7]} 24. Qc3
{[%clk 0:01:36.3]} 24... exf4 {[%clk 0:00:34]} 25. e5 {[%clk 0:01:33.5]} 25...
Qc5+ {[%clk 0:00:33.9]} 26. Kh2 {[%clk 0:01:30.6]} 26... g5 {[%clk 0:00:33.8]}
27. Rae1 {[%clk 0:01:22.3]} 27... Ba6 {[%clk 0:00:30.7]} 28. e6 {[%clk
0:01:04.8]} 28... Bxc4 {[%clk 0:00:30.6]} 29. e7 {[%clk 0:01:04.7]} 29... Rfe8
{[%clk 0:00:30.7]} 30. Qf6 {[%clk 0:00:40.1]} 30... Bxf1 {[%clk 0:00:16.6]} 31.
Bd7 {[%clk 0:00:27.5]} 31... h6 {[%clk 0:00:06.7]} 32. Be6+ {[%clk 0:00:26.8]}
32... Kh7 {[%clk 0:00:06.8]} 33. Bxf5+ {[%clk 0:00:27.4]} 33... Kg8 {[%clk
0:00:06.6]} 34. Qg6+ {[%clk 0:00:28]} 34... Kh8 {[%clk 0:00:06.3]} 35. Qh7#
{[%clk 0:00:27.8]} 1-0

[Event "*** SCC Grand Prix: Titled Tuesday Blitz"]
[Site "Chess.com"]
[Date "2020.08.25"]
[Round "2"]
[White "aa175"]
[Black "Annagozel"]
[Result "0-1"]
[WhiteElo "2433"]
[BlackElo "1854"]
[TimeControl "180+1"]
[EndTime "10:19:04 PDT"]
[Termination "Annagozel won on time"]

1. d4 {[%clk 0:03:00.9]} 1... d5 {[%clk 0:02:58.9]} 2. Bf4 {[%clk 0:02:59.8]}
2... e6 {[%clk 0:02:56.9]} 3. e3 {[%clk 0:02:59.6]} 3... Bd6 {[%clk 0:02:56.6]}
4. Qg4 {[%clk 0:02:59.2]} 4... g6 {[%clk 0:02:49.8]} 5. Nf3 {[%clk 0:02:44.7]}
5... e5 {[%clk 0:02:45.8]} 6. Qg3 {[%clk 0:02:25]} 6... exf4 {[%clk 0:02:45.1]}
7. exf4 {[%clk 0:02:25.9]} 7... Qe7+ {[%clk 0:02:35.1]} 8. Be2 {[%clk
0:02:22.5]} 8... Nf6 {[%clk 0:02:30.1]} 9. Ne5 {[%clk 0:02:16.6]} 9... Bf5
{[%clk 0:02:11.3]} 10. Qb3 {[%clk 0:02:01.4]} 10... c6 {[%clk 0:02:07.2]} 11.
O-O {[%clk 0:01:48.7]} 11... O-O {[%clk 0:02:04.8]} 12. Nc3 {[%clk 0:01:45.5]}
12... c5 {[%clk 0:01:55.4]} 13. dxc5 {[%clk 0:00:43.2]} 13... Bxe5 {[%clk
0:01:50.9]} 14. fxe5 {[%clk 0:00:44.1]} 14... Qxe5 {[%clk 0:01:49.5]} 15. Qxb7
{[%clk 0:00:43.2]} 15... Nbd7 {[%clk 0:01:44.6]} 16. c6 {[%clk 0:00:17.7]} 16...
Nb6 {[%clk 0:01:43.3]} 17. Qa6 {[%clk 0:00:09.7]} 17... d4 {[%clk 0:01:26.6]}
18. Nd1 {[%clk 0:00:02.4]} 18... Bxc2 {[%clk 0:01:19.2]} 19. Bf3 {[%clk
0:00:02.2]} 19... Qc7 {[%clk 0:01:09.3]} 20. Rc1 {[%clk 0:00:02.1]} 20... Bf5
{[%clk 0:01:04.4]} 21. a4 {[%clk 0:00:02.2]} 21... Ng4 {[%clk 0:01:02.9]} 22. g3
{[%clk 0:00:01.5]} 22... Ne5 {[%clk 0:01:00.9]} 23. Bg2 {[%clk 0:00:01.7]} 23...
Nbc4 {[%clk 0:00:54.3]} 24. Rxc4 {[%clk 0:00:01.3]} 24... Bd3 {[%clk 0:00:50.1]}
25. b3 {[%clk 0:00:01.8]} 25... Nxc4 {[%clk 0:00:47.8]} 26. bxc4 {[%clk
0:00:02.4]} 26... Bxf1 {[%clk 0:00:46.4]} 27. Kxf1 {[%clk 0:00:02.9]} 27... Rab8
{[%clk 0:00:43.3]} 28. c5 {[%clk 0:00:01.7]} 28... Rb1 {[%clk 0:00:40.7]} 29.
Qd3 {[%clk 0:00:02.1]} 29... Rfb8 {[%clk 0:00:36.7]} 30. Bf3 {[%clk 0:00:01.7]}
30... R8b3 {[%clk 0:00:32.8]} 31. Qe4 {[%clk 0:00:01.2]} 31... Rb8 {[%clk
0:00:29.5]} 0-1

[Event "*** SCC Grand Prix: Titled Tuesday Blitz"]
[Site "Chess.com"]
[Date "2020.08.25"]
[Round "2"]
[White "hellokostya"]
[Black "timator"]
[Result "1-0"]
[WhiteElo "2471"]
[BlackElo "2666"]
[TimeControl "180+1"]
[EndTime "10:19:05 PDT"]
[Termination "hellokostya won by resignation"]

1. d4 {[%clk 0:03:00.9]} 1... Nf6 {[%clk 0:02:58.8]} 2. c4 {[%clk 0:02:55.9]}
2... e6 {[%clk 0:02:58.8]} 3. Nf3 {[%clk 0:02:54]} 3... b6 {[%clk 0:02:56]} 4.
g3 {[%clk 0:02:53.4]} 4... Ba6 {[%clk 0:02:51.3]} 5. b3 {[%clk 0:02:53.2]} 5...
Bb4+ {[%clk 0:02:50.9]} 6. Bd2 {[%clk 0:02:52.9]} 6... Be7 {[%clk 0:02:51.8]} 7.
Nc3 {[%clk 0:02:52.4]} 7... d5 {[%clk 0:02:50.8]} 8. cxd5 {[%clk 0:02:50.4]}
8... exd5 {[%clk 0:02:51.7]} 9. Bg2 {[%clk 0:02:50.5]} 9... O-O {[%clk
0:02:52.2]} 10. O-O {[%clk 0:02:50.6]} 10... c6 {[%clk 0:02:52.8]} 11. Qc2
{[%clk 0:02:42.1]} 11... Nbd7 {[%clk 0:02:52.1]} 12. Rfd1 {[%clk 0:02:40]} 12...
Bb4 {[%clk 0:02:44]} 13. Bf4 {[%clk 0:02:18.5]} 13... Bxc3 {[%clk 0:02:31.9]}
14. Qxc3 {[%clk 0:02:18.1]} 14... Bxe2 {[%clk 0:02:32]} 15. Re1 {[%clk
0:02:16.6]} 15... Bxf3 {[%clk 0:02:24.2]} 16. Bxf3 {[%clk 0:02:15.7]} 16... Rc8
{[%clk 0:02:23.8]} 17. a4 {[%clk 0:02:11.2]} 17... Re8 {[%clk 0:02:17.8]} 18. h4
{[%clk 0:02:03.4]} 18... h6 {[%clk 0:02:17.1]} 19. Kg2 {[%clk 0:02:00.1]} 19...
Ne4 {[%clk 0:02:16.7]} 20. Qc2 {[%clk 0:01:51.3]} 20... f5 {[%clk 0:02:03.2]}
21. Be2 {[%clk 0:01:46.5]} 21... g5 {[%clk 0:01:59.8]} 22. hxg5 {[%clk 0:01:44]}
22... hxg5 {[%clk 0:02:00.7]} 23. Be3 {[%clk 0:01:37.4]} 23... Qf6 {[%clk
0:02:00.2]} 24. Rh1 {[%clk 0:01:15.2]} 24... Nxg3 {[%clk 0:01:42.3]} 25. Kxg3
{[%clk 0:01:06.3]} 25... Nf8 {[%clk 0:01:21.5]} 26. Kg2 {[%clk 0:00:59.1]} 26...
Ng6 {[%clk 0:00:30.9]} 27. Bh5 {[%clk 0:00:53.5]} 27... Kg7 {[%clk 0:00:26.7]}
28. Bxg6 {[%clk 0:00:50.4]} 28... Qxg6 {[%clk 0:00:27.6]} 29. Rh2 {[%clk
0:00:44.5]} 29... Re4 {[%clk 0:00:24.1]} 30. Rah1 {[%clk 0:00:42.8]} 30... f4
{[%clk 0:00:22.9]} 31. Rh7+ {[%clk 0:00:40.8]} 31... Kf8 {[%clk 0:00:08.1]} 32.
Rh8+ {[%clk 0:00:35.5]} 32... Ke7 {[%clk 0:00:08.6]} 33. R1h7+ {[%clk
0:00:34.7]} 33... Kf6 {[%clk 0:00:06.2]} 34. Rh6 {[%clk 0:00:32.3]} 34... f3+
{[%clk 0:00:04.8]} 35. Kf1 {[%clk 0:00:28.8]} 35... Rxh8 {[%clk 0:00:04.3]} 36.
Qxc6+ {[%clk 0:00:27.3]} 36... Kf5 {[%clk 0:00:04.4]} 37. Qxg6+ {[%clk
0:00:26.5]} 1-0

[Event "*** SCC Grand Prix: Titled Tuesday Blitz"]
[Site "Chess.com"]
[Date "2020.08.25"]
[Round "2"]
[White "LubovMarkelova"]
[Black "JoySpaceman"]
[Result "0-1"]
[WhiteElo "2250"]
[BlackElo "2455"]
[TimeControl "180+1"]
[EndTime "10:19:06 PDT"]
[Termination "JoySpaceman won by resignation"]

1. d4 {[%clk 0:03:00.9]} 1... Nf6 {[%clk 0:02:58.3]} 2. Nf3 {[%clk 0:02:58.4]}
2... e6 {[%clk 0:02:58.7]} 3. Bf4 {[%clk 0:02:56.1]} 3... c5 {[%clk 0:02:57.8]}
4. e3 {[%clk 0:02:52.9]} 4... Qb6 {[%clk 0:02:57.6]} 5. Nc3 {[%clk 0:02:49.9]}
5... a6 {[%clk 0:02:43]} 6. Na4 {[%clk 0:02:18.7]} 6... Qa5+ {[%clk 0:02:37.2]}
7. c3 {[%clk 0:02:18.1]} 7... cxd4 {[%clk 0:02:34.2]} 8. exd4 {[%clk 0:02:15.9]}
8... d6 {[%clk 0:02:19.1]} 9. b4 {[%clk 0:02:01.8]} 9... Qc7 {[%clk 0:02:18.8]}
10. Bd3 {[%clk 0:01:58.1]} 10... b5 {[%clk 0:02:18.4]} 11. Nc5 {[%clk
0:01:19.1]} 11... Qc6 {[%clk 0:02:18.4]} 12. Nb3 {[%clk 0:01:13.5]} 12... Qxc3+
{[%clk 0:02:17.1]} 13. Qd2 {[%clk 0:01:13.2]} 13... Qxd2+ {[%clk 0:02:11.5]} 14.
Nfxd2 {[%clk 0:01:12.2]} 14... Bb7 {[%clk 0:02:11.3]} 15. O-O {[%clk 0:01:07.9]}
15... Nc6 {[%clk 0:02:10]} 16. a3 {[%clk 0:01:04.3]} 16... Be7 {[%clk 0:01:58]}
17. Rac1 {[%clk 0:01:01.8]} 17... O-O {[%clk 0:01:47]} 18. Ne4 {[%clk
0:01:02.1]} 18... Nxe4 {[%clk 0:01:25.7]} 19. Bxe4 {[%clk 0:01:01.2]} 19... Rac8
{[%clk 0:01:26]} 20. Bf3 {[%clk 0:00:52.2]} 20... Ba8 {[%clk 0:01:23.8]} 21. Rc2
{[%clk 0:00:46.4]} 21... Na7 {[%clk 0:00:40.6]} 22. Rxc8 {[%clk 0:00:39.8]}
22... Rxc8 {[%clk 0:00:41.5]} 23. Bxa8 {[%clk 0:00:39.8]} 23... Rxa8 {[%clk
0:00:42.4]} 24. Rc1 {[%clk 0:00:38.1]} 24... Rc8 {[%clk 0:00:42.5]} 25. Na5
{[%clk 0:00:35.4]} 25... Rxc1+ {[%clk 0:00:40.4]} 26. Bxc1 {[%clk 0:00:35.8]}
26... Kf8 {[%clk 0:00:39.5]} 27. Kf1 {[%clk 0:00:35.3]} 27... Ke8 {[%clk
0:00:39]} 28. Ke2 {[%clk 0:00:35.8]} 28... Kd7 {[%clk 0:00:39.5]} 29. Kd3 {[%clk
0:00:36.3]} 29... Nc6 {[%clk 0:00:39.1]} 30. Nb3 {[%clk 0:00:32]} 30... Bf6
{[%clk 0:00:34.8]} 31. f4 {[%clk 0:00:29.4]} 31... h5 {[%clk 0:00:33.6]} 32. h3
{[%clk 0:00:28.7]} 32... h4 {[%clk 0:00:33]} 33. Be3 {[%clk 0:00:26.9]} 33...
Ne7 {[%clk 0:00:32.5]} 34. Bf2 {[%clk 0:00:26.7]} 34... Nf5 {[%clk 0:00:30.9]}
35. Nd2 {[%clk 0:00:23.9]} 35... Kc6 {[%clk 0:00:28.6]} 36. Nf3 {[%clk
0:00:19.9]} 36... Kd5 {[%clk 0:00:27.6]} 37. Kc3 {[%clk 0:00:14.6]} 37... Ke4
{[%clk 0:00:26.4]} 38. Nd2+ {[%clk 0:00:13.8]} 38... Kxf4 {[%clk 0:00:26.5]} 0-1